{"text_format":"1","workbook":"xlsx","n_sheets":23,"sheets":["Cover Sheet","S1 - Key Details","S2 - Aims & Objectives","S3 - Proposed Methodology","S4 - Access to frontline","AccessGeneralUpload","S5 - Data Protection","DataProtectionUpload","S6 - Research Ethics","ResearchEthicsUpload","S7 - Dissemination","DisseminationUpload","S8 - Declaration","ProposedMethodologyUpload","KeyDetailsUpload","Researchers","Aims&ObjectivesUpload","ResearcherTemplate","EstabsListAccessUpload","NPSListAccessUpload","CRCListAccessUpload","DeclarationUpload","Lookups"],"not_rendered":{"charts":0,"images":28,"macros":1,"external_links":0,"defined_names":80,"comments":0,"pivot_tables":0},"unopened":[],"bounds":{"document_bytes":16777216,"sheet_cells":100000,"rows_first":2000,"rows_last":500,"rows_between":2000,"halvings":0,"cell_chars":16384,"cell_head_chars":4096},"cells_cut":0,"cells_raw":0,"read":"whole","date_system":"1900"}

{"sheet":"Cover Sheet","index":0,"n_rows":22,"n_cols":5,"rows_kept":22,"cut":false,"hidden":false,"merged":[[21,2,21,7],[12,1,12,9],[13,1,13,9],[18,1,18,9],[19,1,19,9],[14,1,14,9],[15,1,15,9],[16,1,16,9],[17,1,17,9],[4,1,4,9],[6,1,6,9],[7,1,7,9],[8,1,8,9],[10,1,10,9]]}
[]
[null,null,null,null,"NOMS Research Application Form"]
[null,"Please ensure content is enabled prior to completing the application form."]
[]
[null,"NOMS is committed to developing and implementing policies and practices in line with the best available evidence.  Research is thus encouraged whenever it has the potential to increase the effectiveness of operational policy/delivery (either in the short or longer term), maximising the use of NOMS resources. We are particularly interested in research identifying cost-effective ways of: (i) delivering the sentences and orders of the court; (ii) establishing positive, safe, secure and decent environments for managing offenders and delivering offender services; and (iii) reducing reoffending and protecting the public. "]
[]
[null,"All applications to conduct research across NOMS (prison and probation) must be made using this application form or through the Integrated Research Application System (IRAS; https://www.myresearchproject.org.uk/) – the latter also enables applications to be made to various health and social care bodies. Our application process covers all research projects requiring access to data, staff or offenders. It includes research involving Community Rehabilitation Companies (CRCs) and their subcontractors, Contracted Prisons and Young Offenders’ Institutions (YOIs), but excludes research in Secure Training Centres, Secure Children’s Homes or with Youth Offending Teams – applications to conduct research in these excluded areas should be directed to the relevant establishments/teams and approval sought directly from these services. "]
[]
[null,"When submitting an application form to NOMS, the guidance within AI17/2014 must be followed. Applications should be fully completed and the appropriate supporting documentation should be provided – the form should be accompanied by applicants' CVs, any ethical submissions and approvals, and any questionnaires, consent forms etc that have already been devised. Incomplete applications are likely to delay the review process."]
[]
[null,"Completed applications should be sent to the National Research mailbox. All applications will be logged by the NOMS National Research Coordinator, and then reviewed by the appropriate persons (see AI17/2014). If consideration by the National Research Committee is required, the application must be submitted by the end of the month for the following month’s committee meeting (enabling views to be obtained prior to the mid-month meeting)."]
[]
[null,"All research applications will be reviewed against the following criteria:"]
[null,"1.      Are there sufficient links to NOMS’ priorities? "]
[null,"2.      What are the anticipated demands on resources (e.g. anticipated demands on staff time, \n       office requirements, demands on data providers)"]
[null,"3.      Is there an overlap with other current / recent research?"]
[null,"4.      How appropriate and robust is the methodology to be applied? "]
[null,"5.      Are there any data protection / security issues?"]
[null,"6.      Are there any ethical considerations?"]
[null,"7.      What is the extent of the applicants’ research skills and experience?"]
[]
[null,null,"Go to First Section"]

{"sheet":"S1 - Key Details","index":1,"n_rows":72,"n_cols":14,"rows_kept":72,"cut":false,"hidden":false,"merged":[[32,4,32,6],[71,8,71,10],[71,2,71,3],[20,3,21,3],[63,4,63,6],[62,4,62,6],[33,4,33,6],[34,4,34,6],[35,3,36,3],[67,4,67,7],[64,4,64,6],[65,4,65,6],[56,7,56,9],[57,7,57,9],[60,4,60,6],[61,4,61,6],[5,4,6,9],[17,4,17,6],[18,4,18,6],[23,4,23,6],[19,4,19,6],[20,4,21,6],[22,4,22,6],[53,7,53,9],[49,7,49,9],[54,7,54,9],[55,7,55,9],[52,7,52,9],[48,7,48,9],[46,7,46,9],[47,7,47,9],[40,2,41,3],[35,4,36,6],[37,4,37,6],[38,4,38,6],[44,7,44,9],[45,7,45,9]]}
[]
[null,null,null,null,"NOMS Research Application Form"]
[]
[null,"Section 1 - Key Details"]
[null,null,null,null,null,null,null,null,null,null,"2012-04-01"]
[null,null,"Full title of research project",null,null,null,null,null,null,null,{"$f":" IF(M6 = FALSE,\"* Answer Required\",\"Complete\")","v":"* Answer Required"},null,{"$f":"IF(E6=\"\",FALSE,TRUE)","v":false}]
[]
[]
[null,null,"Date of application (dd/mm/yyyy)",null,null,null,null,null,null,null,{"$f":" IF(M9 = FALSE,\"* Answer Required\",\"Complete\")","v":"* Answer Required"},null,{"$f":" AND(isadate(E9), E9 >= EarliestProjectStartDate)","v":false}]
[]
[null,null,"Research timetable (all dates dd/mm/yyyy)"]
[null,null,null,"Start date",null,null,null,null,null,null,{"$f":" IF(M12 = FALSE,\"* Answer Required\",\"Complete\")","v":"* Answer Required"},null,{"$f":" AND(isadate(E12), E12 >= EarliestProjectStartDate)","v":false}]
[null,null,null,"Data collection period","From:",null,"To:",null,null,null,{"$f":" IF(M13 = FALSE,\"* Answer Required\",\"Complete\")","v":"* Answer Required"},null,{"$f":" AND(isadate(F13), F13>= EarliestProjectStartDate, isadate(H13), H13>= EarliestProjectStartDate)","v":false}]
[null,null,null,"Report completion date",null,null,null,null,null,null,{"$f":" IF(M14 = FALSE,\"* Answer Required\",\"Complete\")","v":"* Answer Required"},null,{"$f":" AND(isadate(E14), E14>= EarliestProjectStartDate)","v":false}]
[]
[null,null,"Lead Researcher"]
[null,null,null,"Title",null,null,true,null,null,null,{"$f":" IF(M17 = FALSE,\"* Answer Required\",\"Complete\")","v":"* Answer Required"},null,{"$f":"IF(E17=\"\",FALSE,TRUE)","v":false}]
[null,null,null,"Name",null,null,null,null,null,null,{"$f":" IF(M18 = FALSE,\"* Answer Required\",\"Complete\")","v":"* Answer Required"},null,{"$f":"IF(E18=\"\",FALSE,TRUE)","v":false}]
[null,null,null,"Post",null,null,null,null,null,null,{"$f":" IF(M19 = FALSE,\"* Answer Required\",\"Complete\")","v":"* Answer Required"},null,{"$f":"IF(E19=\"\",FALSE,TRUE)","v":false}]
[null,null,null,"Employer",null,null,null,null,null,null,{"$f":" IF(M20 = FALSE,\"* Answer Required\",\"Complete\")","v":"* Answer Required"},null,{"$f":"IF(E20=\"\",FALSE,TRUE)","v":false}]
[null,null,null,"Address",null,null,null,null,null,null,{"$f":" IF(M21 = FALSE,\"* Answer Required\",\"Complete\")","v":"* Answer Required"},null,{"$f":"IF(E21=\"\",FALSE,TRUE)","v":false}]
[]
[null,null,null,"Tel No",null,null,null,null,null,null,{"$f":" IF(M23 = FALSE,\"* Answer Required\",\"Complete\")","v":"* Answer Required"},null,{"$f":"IF(E23=\"\",FALSE,TRUE)","v":false}]
[null,null,null,"Email",null,null,null,null,null,null,{"$f":" IF(M24 = FALSE,\"* Answer Required\",\"Complete\")","v":"* Answer Required"},null,{"$f":"IF(E24=\"\",FALSE,TRUE)","v":false}]
[]
[null,null,"Additional Researchers"]
[null,19]
[]
[null,null,"Are you applying as an academic student?",null,null,null,null,null,null,null,{"$f":" IF(M29 = FALSE,\"* Answer Required\",\"Complete\")","v":"* Answer Required"},null,{"$f":"IF(StudentApplication=\"\",FALSE,TRUE)","v":false}]
[]
[null,null,null,"Please complete details of main academic supervisor:"]
[null,null,null,"Title",null,null,true,null,null,null,{"$f":" IF(M32 = FALSE,\"* Answer Required\",\"Complete\")","v":"Complete"},null,{"$f":"IF(AND(StudentApplication = \"Yes\", E32=\"\"),FALSE,TRUE)","v":true}]
[null,null,null,"Name",null,null,null,null,null,null,{"$f":" IF(M33 = FALSE,\"* Answer Required\",\"Complete\")","v":"Complete"},null,{"$f":"IF(AND(StudentApplication = \"Yes\", E33=\"\"),FALSE,TRUE)","v":true}]
[null,null,null,"Post",null,null,null,null,null,null,"Complete",null,{"$f":"IF(AND(StudentApplication = \"Yes\", E34=\"\"),FALSE,TRUE)","v":true}]
[null,null,null,"Employer",null,null,null,null,null,null,"Complete",null,{"$f":"IF(AND(StudentApplication = \"Yes\", E35=\"\"),FALSE,TRUE)","v":true}]
[null,null,null,"Address",null,null,null,null,null,null,"Complete",null,{"$f":"IF(AND(StudentApplication = \"Yes\", E36=\"\"),FALSE,TRUE)","v":true}]
[]
[null,null,null,"Tel No",null,null,null,null,null,null,"Complete",null,{"$f":"IF(AND(StudentApplication = \"Yes\", E38=\"\"),FALSE,TRUE)","v":true}]
[null,null,null,"Email",null,null,null,null,null,null,"Complete",null,{"$f":"IF(AND(StudentApplication = \"Yes\", E39=\"\"),FALSE,TRUE)","v":true}]
[]
[null,null,"Are you a NOMS psychologist in training undertaking this research for a Chartership exemplar?",null,null,null,null,null,null,null,{"$f":" IF(M41 = FALSE,\"* Answer Required\",\"Complete\")","v":"* Answer Required"},null,{"$f":"IF(ChartershipExemplar=\"\",FALSE,TRUE)","v":false}]
[]
[]
[null,null,"Is the project supported by (tick all that apply):"]
[null,null,null,"NOMS HQ",null,null,"Please specify key contact:",null,null,null,null,null,{"$f":"IF(AND(SupportedByNomsHq = TRUE,H45=\"\"), FALSE, TRUE)","v":true}]
[null,null,null,"Community Rehabilitation Company",null,null,"Please specify key contact:",null,null,null,null,null,{"$f":"IF(AND(SupportedByProbationTrust = TRUE,H46=\"\"), FALSE, TRUE)","v":true}]
[null,null,null,"Private Sector Prison",null,null,"Please specify key contact:",null,null,null,null,null,{"$f":"IF(AND( SupportedByPrivateSectorPrison = TRUE,H47=\"\"), FALSE, TRUE)","v":true}]
[null,null,null,"Ministry of Justice",null,null,"Please specify key contact:",null,null,null,null,null,{"$f":"IF(AND(SupportedByMoj = TRUE,H48=\"\"), FALSE, TRUE)","v":true}]
[null,null,null,"Other govt. department",null,null,"Please specify:",null,null,null,null,null,{"$f":"IF(AND(SupportedByOthGovDep = TRUE,H49=\"\"), FALSE, TRUE)","v":true},"None selected"]
[null,null,null,"Other",null,null,"Please specify:",null,null,null,{"$f":" IF(OR(M45= FALSE,M46 =FALSE,M47 = FALSE,M48 = FALSE,M49 = FALSE,M50 = FALSE),\"* Answer Required\",\"Complete\")","v":"Complete"},null,{"$f":"IF(AND(SupportedByOther = TRUE,H50=\"\"), FALSE, TRUE)","v":true},{"$f":"IF(AND(SupportedByNomsHq = FALSE, SupportedByProbationTrust = FALSE, SupportedByPrivateSectorPrison = FALSE, SupportedByMoj = FALSE, SupportedByOthGovDep = FALSE, SupportedByOther = FALSE), TRUE, FALSE)","v":true}]
[]
[null,null,"Has funding been secured from (tick all that apply):"]
[null,null,null,"NOMS HQ",null,null,"Amount",null,null,null,null,null,{"$f":"IF(AND(FundedByNomsHq = TRUE, H53=\"\"), FALSE, TRUE)","v":true}]
[null,null,null,"Community Rehabilitation Company"]
[null,null,null,"Private Sector Prison"]
[null,null,null,"Ministry of Justice"]
[null,null,null,"Other govt. department",null,null,"Please specify",null,null,null,null,null,{"$f":"IF(AND(FundedByOthGovDep = TRUE, H57=\"\"), FALSE, TRUE)","v":true},"None selected"]
[null,null,null,"Other",null,null,"Please specify",null,null,null,{"$f":" IF(OR(M53= FALSE,M57 = FALSE,M58 = FALSE),\"* Answer Required\",\"Complete\")","v":"Complete"},null,{"$f":"IF(AND(FundedByOther = TRUE, H58=\"\"), FALSE, TRUE)","v":true},{"$f":"IF(AND(FundedByNomsHq = FALSE, FundedByProbationTrust = FALSE,FundedByPrivateSectorPrison = FALSE, FundedByMoj = FALSE, FundedByOthGovDep = FALSE, FundedByOther = FALSE), TRUE, FALSE)","v":true}]
[]
[null,null,"NOMS project lead (where known):"]
[null,null,null,"Name"]
[null,null,null,"Post"]
[null,null,null,"Directorate"]
[null,null,null,"Group"]
[null,null,null,"Tel No"]
[null,null,null,"Email"]
[]
[null,null,"Most relevant NOMS priority:",null,null,null,null,null,null,null,{"$f":" IF(M68 = FALSE,\"* Answer Required\",\"Complete\")","v":"* Answer Required"},null,{"$f":"IF(E68=\"\",FALSE,TRUE)","v":false}]
[]
[null,null,null,null,null,null,null,null,null,null,"Outstanding questions in this section:",{"$f":"COUNTIF(M:M, FALSE)","v":15}]
[]
[null,null,"Go to Previous Section",null,null,null,null,null,"Go to Next Section"]

{"sheet":"S2 - Aims & Objectives","index":2,"n_rows":29,"n_cols":13,"rows_kept":29,"cut":false,"hidden":false,"merged":[[5,4,6,9],[8,4,9,9],[11,4,12,9],[5,2,5,3],[11,2,11,3],[28,8,28,10],[28,2,28,3],[14,4,15,9],[17,4,18,9],[20,4,21,9],[23,4,24,9],[14,2,14,3],[17,2,17,3],[20,2,20,3],[23,2,23,3]]}
[]
[null,null,null,null,"NOMS Research Application Form"]
[]
[null,"Section 2 - Aims & Objectives"]
[]
[null,null,"Brief description of research\n(Max 300 words using language easily understood by a lay person)"]
[null,null,null,null,null,null,null,null,null,null,{"$f":" IF(M7 = FALSE,\"* Answer Required\",\"Complete\")","v":"* Answer Required"},null,{"$f":"IF(E6=\"\",FALSE,TRUE)","v":false}]
[]
[null,null,"Aim of the research"]
[null,null,null,null,null,null,null,null,null,null,{"$f":" IF(M10 = FALSE,\"* Answer Required\",\"Complete\")","v":"* Answer Required"},null,{"$f":"IF(E9=\"\",FALSE,TRUE)","v":false}]
[]
[null,null,"What are the primary research questions (and/or hypotheses)?"]
[null,null,null,null,null,null,null,null,null,null,{"$f":" IF(M13 = FALSE,\"* Answer Required\",\"Complete\")","v":"* Answer Required"},null,{"$f":"IF(E12=\"\",FALSE,TRUE)","v":false}]
[]
[null,null,"What are the potential benefits of the research to NOMS policy/business? How does the research link to NOMS business priorities? How could the findings be operationalised?"]
[null,null,null,null,null,null,null,null,null,null,{"$f":" IF(M16 = FALSE,\"* Answer Required\",\"Complete\")","v":"* Answer Required"},null,{"$f":"IF(E15=\"\",FALSE,TRUE)","v":false}]
[]
[null,null,"What are the potential benefits of the research to academic knowledge in the field of study?"]
[null,null,null,null,null,null,null,null,null,null,{"$f":" IF(M19 = FALSE,\"* Answer Required\",\"Complete\")","v":"* Answer Required"},null,{"$f":"IF(E18=\"\",FALSE,TRUE)","v":false}]
[]
[null,null,"What previous research has been conducted in this area?"]
[null,null,null,null,null,null,null,null,null,null,{"$f":" IF(M22 = FALSE,\"* Answer Required\",\"Complete\")","v":"* Answer Required"},null,{"$f":"IF(E21=\"\",FALSE,TRUE)","v":false}]
[]
[null,null,"What are the main limitations of the research proposed?"]
[null,null,null,null,null,null,null,null,null,null,{"$f":" IF(M25 = FALSE,\"* Answer Required\",\"Complete\")","v":"* Answer Required"},null,{"$f":"IF(E24=\"\",FALSE,TRUE)","v":false}]
[]
[null,null,null,null,null,null,null,null,null,null,"Outstanding questions in this section:",{"$f":"COUNTIF(M:M, FALSE)","v":7}]
[]
[null,null,"Go to Previous Section",null,null,null,null,null,"Go to Next Section"]

{"sheet":"S3 - Proposed Methodology","index":3,"n_rows":32,"n_cols":13,"rows_kept":32,"cut":false,"hidden":false,"merged":[[14,4,15,9],[17,4,18,9],[20,4,21,9],[17,2,17,3],[20,2,20,3],[31,2,31,3],[31,8,31,10],[26,2,26,3],[23,4,24,9],[26,4,27,9],[23,2,23,3]]}
[null,null,null,null,"NOMS Research Application Form"]
[]
[null,"Section 3 - Proposed Methodology"]
[]
[null,null,"Broadly speaking, what type of methodology do you intend to use in order to deliver this research"]
[null,null,"(tick all that apply):"]
[null,null,null,"Literature review"]
[null,null,null,"Rapid evidence assessment/systematic review"]
[null,null,null,"Action research"]
[null,null,null,"Case studies"]
[null,null,null,"Process evaluation"]
[null,null,null,"Impact evaluation"]
[null,null,null,"Economic evaluation"]
[null,null,null,"Other"]
[null,null,null,"Please specify:"]
[null,null,null,null,null,null,null,null,null,null,{"$f":" IF(M16 = FALSE,\"* Answer Required\",\"Complete\")","v":"* Answer Required"},null,{"$f":"IF(OR(AND(MethodOther=TRUE, E15=\"\"),AND(MethodLitReview=FALSE,MethodRapidEvidenceSystematicRev=FALSE,MethodActionResearch=FALSE,MethodCaseStudies=FALSE,MethodProcessEvaluation=FALSE,MethodImpactEvaluation=FALSE,MethodEconomicEvaluation=FALSE, MethodOther = FALSE)),FALSE,TRUE)","v":false}]
[]
[null,null,"Please summarise your proposed design and methodology (including details on sampling and sample sizes, identifying/recruiting respondents, likely response rates, testing/validation of tools/instruments)"]
[null,null,null,null,null,null,null,null,null,null,{"$f":" IF(M19 = FALSE,\"* Answer Required\",\"Complete\")","v":"* Answer Required"},null,{"$f":"IF(E18=\"\", FALSE, TRUE)","v":false}]
[]
[null,null,"Please describe the proposed methods of analysis (quantitative and/or qualitative)"]
[null,null,null,null,null,null,null,null,null,null,{"$f":" IF(M22 = FALSE,\"* Answer Required\",\"Complete\")","v":"* Answer Required"},null,{"$f":"IF(E21=\"\", FALSE, TRUE)","v":false}]
[]
[null,null,"What are the resource implications (e.g. anticipated demands on staff time, office requirements, demands on data providers etc)?"]
[null,null,null,null,null,null,null,null,null,null,{"$f":" IF(M25 = FALSE,\"* Answer Required\",\"Complete\")","v":"* Answer Required"},null,{"$f":"IF(E24=\"\", FALSE, TRUE)","v":false}]
[]
[null,null,"What are the main methodological and/or operational risks and how will these be mitigated? Any conflicts of interest?"]
[null,null,null,null,null,null,null,null,null,null,{"$f":" IF(M28 = FALSE,\"* Answer Required\",\"Complete\")","v":"* Answer Required"},null,{"$f":"IF(E27=\"\", FALSE, TRUE)","v":false}]
[]
[null,null,null,null,null,null,null,null,null,null,"Outstanding questions in this section:",{"$f":"COUNTIF(M:M, FALSE)","v":5}]
[]
[null,null,"Go to Previous Section",null,null,null,null,null,"Go to Next Section"]

{"sheet":"S4 - Access to frontline","index":4,"n_rows":76,"n_cols":13,"rows_kept":76,"cut":false,"hidden":false,"merged":[[5,3,5,4],[6,3,6,4],[8,3,8,4],[7,3,7,4],[9,5,10,5],[9,3,10,4],[75,2,75,3],[75,8,75,10],[62,4,63,9],[66,4,67,9],[70,4,71,9]]}
[null,null,null,null,"NOMS Research Application Form"]
[]
[null,"Section 4 - Access to frontline"]
[]
[null,null,"Does your research require access to (please answer all):"]
[null,null,null,"Prison establishments",null,null,null,null,null,null,{"$f":" IF(M6 = FALSE,\"* Answer Required\",\"Complete\")","v":"* Answer Required"},null,{"$f":" IF(AccessToPrisons = \"\", FALSE, TRUE)","v":false}]
[null,null,null,"National Probation Service (NPS)",null,null,null,null,null,null,{"$f":" IF(M7 = FALSE,\"* Answer Required\",\"Complete\")","v":"* Answer Required"},null,{"$f":"IF(AccessToNPS = \"\", FALSE, TRUE)","v":false}]
[null,null,null,"Community Rehabilitation Company (CRC)",null,null,null,null,null,null,{"$f":" IF(M8 = FALSE,\"* Answer Required\",\"Complete\")","v":"* Answer Required"},null,{"$f":"IF(AccessToCRCs = \"\", FALSE, TRUE)","v":false}]
[null,null,null,"Young Offenders' Institutions",null,null,null,null,null,null,{"$f":" IF(M9 = FALSE,\"* Answer Required\",\"Complete\")","v":"* Answer Required"},null,{"$f":" IF(AccessToYois = \"\", FALSE, TRUE)","v":false}]
[null,null,null,"Youth Offending Teams/Secure Training Centres/Secure Children's Homes"]
[null,null,null,null,null,null,null,null,null,null,{"$f":" IF(M11 = FALSE,\"* Answer Required\",\"Complete\")","v":"* Answer Required"},null,{"$f":"IF(AccessToYotsStcsSchs = \"\", FALSE, TRUE)","v":false}]
[]
[null,null,"Does your research require access to any high security prison establishments?"]
[null,null,null,null,null,null,null,null,null,null,{"$f":" IF(M14 = FALSE,\"* Answer Required\",\"Complete\")","v":"Complete"},null,{"$f":"IF(AND(AccessToPrisons = \"Yes\", AccessToHighSecurity = \"\"), FALSE, TRUE)","v":true}]
[]
[]
[null,null,"Please select and add establishments to the box on the right as appropriate:"]
[null,null,null,null,null,"Establishments Selected:"]
[]
[]
[]
[]
[]
[]
[]
[]
[]
[]
[]
[]
[]
[]
[]
[]
[]
[]
[]
[]
[null,null,"Please select and add NPS Divisions to the box on the right as appropriate:"]
[null,null,null,null,null,"Divisions Selected:"]
[]
[]
[]
[]
[]
[]
[]
[null,null,"Please select and add CRCs to the box on the right as appropriate:"]
[null,null,null,null,null,null,null,"CRCs Selected:"]
[]
[]
[]
[]
[]
[]
[]
[]
[]
[]
[]
[]
[null,null,"Please state your reasons for choosing the selected establishments/NPS Divisions/CRCs:"]
[]
[null,null,null,null,null,null,null,null,null,null,{"$f":" IF(M64 = FALSE,\"* Answer Required\",\"Complete\")","v":"Complete"},null,{"$f":"IF(AND(E63=\"\",OR(AccessToPrisons = \"Yes\", AccessToNPS = \"Yes\", AccessToCRCs = \"Yes\")), FALSE, TRUE)","v":true}]
[]
[null,null,"Have any establishments/NPS Divisons/CRCs already been approached about this research? If so, provide details:"]
[]
[null,null,null,null,null,null,null,null,null,null,{"$f":" IF(M68 = FALSE,\"* Answer Required\",\"Complete\")","v":"Complete"},null,{"$f":"IF(AND(E67=\"\",OR(AccessToPrisons = \"Yes\", AccessToNPS = \"Yes\", AccessToCRCs = \"Yes\")), FALSE, TRUE)","v":true}]
[]
[null,null,"Please list any equipment which you are intending to use within the establishments/NPS Divisions/CRCs:"]
[]
[null,null,null,null,null,null,null,null,null,null,{"$f":" IF(M72 = FALSE,\"* Answer Required\",\"Complete\")","v":"Complete"},null,{"$f":"IF(AND(E71=\"\",OR(AccessToPrisons = \"Yes\", AccessToNPS = \"Yes\", AccessToCRCs = \"Yes\")), FALSE, TRUE)","v":true}]
[]
[null,null,null,null,null,null,null,null,null,null,"Outstanding questions in this section:",{"$f":"COUNTIF(M:M, FALSE)","v":5}]
[]
[null,null,"Go to Previous Section",null,null,null,null,null,"Go to Next Section"]

{"sheet":"AccessGeneralUpload","index":5,"n_rows":2,"n_cols":10,"rows_kept":2,"cut":false,"hidden":true,"merged":[]}
["IdRef","AccessToPrisons","AccessToNPS","AccessToCRCs","AccessToYois","AccessToYotsStcsSchs","AccessToHighSecurity","ReasonsForEstabsTrusts","EstabsTrustsAlreadyApproached","EquipmentToUseInEstabsTrusts"]
[{"$f":"IDRef","v":22},"","","","","","",{"$f":"IF(ISBLANK('S4 - Access to frontline'!E63), \"\", 'S4 - Access to frontline'!E63)","v":""},{"$f":"IF(ISBLANK('S4 - Access to frontline'!E67), \"\", 'S4 - Access to frontline'!E67)","v":""},{"$f":"IF(ISBLANK('S4 - Access to frontline'!E71), \"\", 'S4 - Access to frontline'!E71)","v":""}]

{"sheet":"S5 - Data Protection","index":6,"n_rows":31,"n_cols":13,"rows_kept":31,"cut":false,"hidden":false,"merged":[[8,4,8,5],[10,2,11,8],[14,4,15,9],[14,2,14,3],[20,4,20,6],[22,4,23,9],[30,2,30,3],[30,8,30,10],[17,2,17,3],[25,2,25,3],[25,4,26,9],[17,4,18,9]]}
[null,null,null,null,"NOMS Research Application Form"]
[]
[null,"Section 5 - Data Protection"]
[]
[null,null,"Does the proposed study involve the collection/use of personal data?"]
[null,null,null,null,null,null,null,null,null,null,{"$f":" IF(M6 = FALSE,\"* Answer Required\",\"Complete\")","v":"* Answer Required"},null,{"$f":" IF(UsesPersonalData = \"\", FALSE, TRUE)","v":false}]
[]
[null,null,"What is your organisation's Data Protection Notification Number?"]
[null,null,null,null,null,null,null,null,null,null,{"$f":" IF(M9 = FALSE,\"* Answer Required\",\"Complete\")","v":"Complete"},null,{"$f":" IF(AND(UsesPersonalData = \"Yes\", E9 = \"\"), FALSE, TRUE)","v":true}]
[]
[null,null,"Does your Data Protection Notification allow for offence-related information of individuals to be stored within your organisation for research purposes?"]
[]
[null,null,null,null,null,null,null,null,null,null,{"$f":" IF(M13 = FALSE,\"* Answer Required\",\"Complete\")","v":"Complete"},null,{"$f":" IF(AND(UsesPersonalData = \"Yes\", DPNAllowsOffenceRelatedInfo = \"\"), FALSE, TRUE)","v":true}]
[]
[null,null,"Explain how you will hold the personal data in order to ensure its security during the study"]
[null,null,null,null,null,null,null,null,null,null,{"$f":" IF(M16 = FALSE,\"* Answer Required\",\"Complete\")","v":"Complete"},null,{"$f":"IF(AND(UsesPersonalData = \"Yes\", E15 = \"\"), FALSE, TRUE)","v":true}]
[]
[null,null,"How will you ensure that any findings do not reveal information about single individuals?"]
[null,null,null,null,null,null,null,null,null,null,{"$f":" IF(M19 = FALSE,\"* Answer Required\",\"Complete\")","v":"Complete"},null,{"$f":"IF(AND(UsesPersonalData = \"Yes\", E18 = \"\"), FALSE, TRUE)","v":true}]
[]
[null,null,"How long will the data be retained for?",null,null,null,null,null,null,null,{"$f":" IF(M21 = FALSE,\"* Answer Required\",\"Complete\")","v":"Complete"},null,{"$f":"IF(AND(UsesPersonalData = \"Yes\", E21 = \"\"), FALSE, TRUE)","v":true}]
[]
[null,null,"How will you dispose of the data?"]
[null,null,null,null,null,null,null,null,null,null,{"$f":" IF(M24 = FALSE,\"* Answer Required\",\"Complete\")","v":"Complete"},null,{"$f":"IF(AND(UsesPersonalData = \"Yes\", E23 = \"\"), FALSE, TRUE)","v":true}]
[]
[null,null,"Please provide details on any access required to existing data sources (and whether access to this data has already been sought and from whom)"]
[null,null,null,null,null,null,null,null,null,null,{"$f":" IF(M27 = FALSE,\"* Answer Required\",\"Complete\")","v":"Complete"},null,{"$f":"IF(AND(UsesPersonalData = \"Yes\", E26 = \"\"), FALSE, TRUE)","v":true}]
[]
[null,null,null,null,null,null,null,null,null,null,"Outstanding questions in this section:",{"$f":"COUNTIF(M:M, FALSE)","v":1}]
[]
[null,null,"Go to Previous Section",null,null,null,null,null,"Go to Next Section"]

{"sheet":"DataProtectionUpload","index":7,"n_rows":2,"n_cols":9,"rows_kept":2,"cut":false,"hidden":true,"merged":[]}
["IdRef","UsesPersonalData","DataProtectionNotificationNumber","DPNAllowsOffenceRelatedInfo","ExplainStorageSecurityOfPersonalData","EnsureIndividualsNotIdentifiable","HowLongDataRetention","HowDisposeOfData","DetailsOfAccessToExistingDataSources"]
[{"$f":"IDRef","v":22},"",{"$f":"IF(ISBLANK('S5 - Data Protection'!E9), \"\", 'S5 - Data Protection'!E9)","v":""},"",{"$f":"IF(ISBLANK('S5 - Data Protection'!E15), \"\", 'S5 - Data Protection'!E15)","v":""},{"$f":"IF(ISBLANK('S5 - Data Protection'!E18), \"\", 'S5 - Data Protection'!E18)","v":""},{"$f":"IF(ISBLANK('S5 - Data Protection'!E21), \"\", 'S5 - Data Protection'!E21)","v":""},{"$f":"IF(ISBLANK('S5 - Data Protection'!E23), \"\", 'S5 - Data Protection'!E23)","v":""},{"$f":"IF(ISBLANK('S5 - Data Protection'!E26), \"\", 'S5 - Data Protection'!E26)","v":""}]

{"sheet":"S6 - Research Ethics","index":8,"n_rows":13,"n_cols":13,"rows_kept":13,"cut":false,"hidden":false,"merged":[[4,4,5,9],[4,2,4,3],[12,2,12,3],[12,8,12,10]]}
[null,null,null,null,"NOMS Research Application Form"]
[]
[null,"Section 6 - Research Ethics"]
[]
[null,null,"What are the ethical considerations relevant to this study and how have you addressed them (inlcuding obtaining of informed consent, safety of participants/researchers, ensuring anonymity/confidentiality)"]
[null,null,null,null,null,null,null,null,null,null,{"$f":" IF(M6 = FALSE,\"* Answer Required\",\"Complete\")","v":"* Answer Required"},null,{"$f":" IF(E5 = \"\", FALSE, TRUE)","v":false}]
[]
[null,null,"Has a relevant Ethics Committee approved the research?"]
[null,null,null,null,null,null,null,null,null,null,{"$f":" IF(M9 = FALSE,\"* Answer Required\",\"Complete\")","v":"* Answer Required"},null,{"$f":" IF(ApprovedByEthicsCommittee =\"\", FALSE, TRUE)","v":false}]
[]
[null,null,null,null,null,null,null,null,null,null,"Outstanding questions in this section:",{"$f":"COUNTIF(M:M, FALSE)","v":2}]
[]
[null,null,"Go to Previous Section",null,null,null,null,null,"Go to Next Section"]

{"sheet":"ResearchEthicsUpload","index":9,"n_rows":2,"n_cols":3,"rows_kept":2,"cut":false,"hidden":true,"merged":[]}
["IdRef","EthicalConsiderations","ApprovedByEthicsCommittee"]
[{"$f":"IDRef","v":22},{"$f":"IF(ISBLANK('S6 - Research Ethics'!E5), \"\", 'S6 - Research Ethics'!E5)","v":""},""]

{"sheet":"S7 - Dissemination","index":10,"n_rows":13,"n_cols":13,"rows_kept":13,"cut":false,"hidden":false,"merged":[[12,2,12,3],[12,8,12,10],[4,4,5,9],[7,4,8,9],[7,2,7,3],[4,2,4,3]]}
[null,null,null,null,"NOMS Research Application Form"]
[]
[null,"Section 7 - Dissemination"]
[]
[null,null,"When will the research summary and project review form be made available for NOMS?"]
[null,null,null,null,null,null,null,null,null,null,{"$f":" IF(M6 = FALSE,\"* Answer Required\",\"Complete\")","v":"* Answer Required"},null,{"$f":" IF(E5 = \"\", FALSE, TRUE)","v":false}]
[]
[null,null,"How else will the results of the research be disseminated (e.g. article, book, thesis etc)?"]
[null,null,null,null,null,null,null,null,null,null,{"$f":" IF(M9 = FALSE,\"* Answer Required\",\"Complete\")","v":"* Answer Required"},null,{"$f":" IF(E8 =\"\", FALSE, TRUE)","v":false}]
[]
[null,null,null,null,null,null,null,null,null,null,"Outstanding questions in this section:",{"$f":"COUNTIF(M:M, FALSE)","v":2}]
[]
[null,null,"Go to Previous Section",null,null,null,null,null,"Go to Next Section"]

{"sheet":"DisseminationUpload","index":11,"n_rows":2,"n_cols":3,"rows_kept":2,"cut":false,"hidden":true,"merged":[]}
["IdRef","WhenMadeAvailable","HowElseDisseminated"]
[{"$f":"IDRef","v":22},{"$f":"IF(ISBLANK('S7 - Dissemination'!E5), \"\", 'S7 - Dissemination'!E5)","v":""},{"$f":"IF(ISBLANK('S7 - Dissemination'!E8), \"\", 'S7 - Dissemination'!E8)","v":""}]

{"sheet":"S8 - Declaration","index":12,"n_rows":29,"n_cols":6,"rows_kept":29,"cut":false,"hidden":false,"merged":[[28,3,28,4],[9,6,9,7],[24,5,24,6],[25,5,25,6],[26,5,26,6],[27,5,27,6],[28,5,28,6],[23,3,23,4],[24,3,24,4],[25,3,25,4],[27,3,27,4],[17,2,17,3],[21,5,21,6],[22,3,22,4],[21,3,21,4],[22,5,22,6],[26,3,26,4],[23,5,23,6],[15,2,15,9],[4,2,4,9],[8,5,8,7],[11,2,11,9],[13,2,13,9]]}
[null,null,null,null,"NOMS Research Application Form"]
[]
[null,"Section 8 - Declaration"]
[]
[null,null,"I confirm that the research will comply with the requirements of the Data Protection Act 1998 and any other applicable legislation, and will also comply with the expectations set out in AI17/2014. No amendments to the scope or nature of the research will be made without the agreement of the approving body."]
[]
[null,null,"Please tick, enter your name and date to indicate your agreement"]
[]
[null,null,null,null,"Name:"]
[null,null,null,null,"Date (dd/mm/yyyy):"]
[]
[null,null,"Researchers will be notified in writing of the decision. Successful applicants will be required, on completion of the project, to prepare a research summary for NOMS which (i) summarises the research aims and approach, (ii) highlights the key findings, and (iii) sets out the implications for NOMS decision-makers (approximately three pages; maximum of five pages). Successful applicants will also be required to submit a project review form (which covers lessons learnt and asks for ratings on key questions)."]
[]
[null,null,"If an application is declined, reasons will usually be provided. Consideration will be given to no more than one resubmission. When resubmitting an application, the reasons for the previous rejection should be fully addressed.  "]
[]
[null,null,"Please also note that, unless the project is commissioned by MoJ/NOMS and signed off by Ministers, the decision to give access to prison establishments, National Probation Service (NPS) divisions or Community Rehabilitation Company (CRC) areas (and the offenders and practitioners within these establishments/divisions/areas) ultimately lies with the Governing Governor/Director of the establishment or the Deputy Director/Chief Executive of the NPS division/CRC area concerned."]
[]
[null,null,"Go to Previous Section"]
[]
[]
[null,null,null,"Progress Table - Outstanding questions to be answered"]
[null,null,null,"Section",null,"Number of unanswered questions"]
[null,null,null,"S1 - Key Details",null,{"$f":"OutstandingKD","v":15}]
[null,null,null,"S2 - Aims & Objectives",null,{"$f":"OutstandingAO","v":7}]
[null,null,null,"S3 - Proposed Methodology",null,{"$f":"OutstandingPM","v":5}]
[null,null,null,"S4 - Access to frontline",null,{"$f":"OutstandingAccess","v":5}]
[null,null,null,"S5 - Data Protection",null,{"$f":"OutstandingDataProtections","v":1}]
[null,null,null,"S6 - Research Ethics",null,{"$f":" OutstandingResearchEthics","v":2}]
[null,null,null,"S7 - Dissemination",null,{"$f":" OutstandingDissemination","v":2}]

{"sheet":"ProposedMethodologyUpload","index":13,"n_rows":2,"n_cols":14,"rows_kept":2,"cut":false,"hidden":true,"merged":[]}
["IdRef","MethodLitReview","MethodRapidEvidenceSystematicRev","MethodActionResearch","MethodCaseStudies","MethodProcessEvaluation","MethodImpactEvaluation","MethodEconomicEvaluation","MethodOther","MethodSpecify","ProposedDesignMethodology","ProposedAnalysis","ResourceImplications","MethodologicalOperationalRisks&Mitigation"]
[{"$f":"IDRef","v":22},false,false,false,false,false,false,false,false,{"$f":"IF(ISBLANK('S3 - Proposed Methodology'!E15), \"\", 'S3 - Proposed Methodology'!E15)","v":""},{"$f":"IF(ISBLANK('S3 - Proposed Methodology'!E18),\"\",'S3 - Proposed Methodology'!E18)","v":""},{"$f":"IF(ISBLANK('S3 - Proposed Methodology'!E21), \"\", 'S3 - Proposed Methodology'!E21)","v":""},{"$f":"IF(ISBLANK('S3 - Proposed Methodology'!E24), \"\", 'S3 - Proposed Methodology'!E24)","v":""},{"$f":"IF(ISBLANK('S3 - Proposed Methodology'!E27), \"\", 'S3 - Proposed Methodology'!E27)","v":""}]

{"sheet":"KeyDetailsUpload","index":14,"n_rows":2,"n_cols":44,"rows_kept":2,"cut":false,"hidden":true,"merged":[]}
["IdRef","FullTitleOfResearchProject","DateOfApplication","StartDate","DataCollectionFrom","DataCollectionTo","ReportCompletionDate","StudentApplication","AcademicSupervisorTitle","AcademicSupervisorName","AcademicSupervisorPost","AcademicSupervisorEmployer","AcadmicSupervisorAddress","AcademicSupervisorTelNo","AcademicSupervisorEmail","SupportedByNomsHq","SupportedByNomsHqContact","SupportedByProbationTrust","SupportedByProbationTrustContact","SupportedByPrivateSectorPrison","SupportedByPrivateSectorPrisonContact","SupportedByMoj","SupportedByMojContact","SupportedByOthGovDep","SupportedByOthGovDepSpecify","SupportedByOther","SupportedByOtherSpecify","FundedByNomsHq","FundedByNomsHqAmount","FundedByProbationTrust","FundedByPrivateSectorPrison","FundedByMoj","FundedByOthGovDep","FundedByOthGovDepSpecify","FundedByOther","FundedByOtherSpecify","NomsProjectLeadName","NomsProjectLeadPost","NomsProjectLeadDirectorate","NomsProjectLeadGroup","NomsProjectLeadTelNo","NomsProjectLeadEmail","NOMSMostRelevantBusinessPriority","ChartershipExemplar"]
[22,{"$f":"IF(ISBLANK('S1 - Key Details'!E6), \"\", 'S1 - Key Details'!E6)","v":""},{"$f":"IF(ISBLANK('S1 - Key Details'!E9), \"\", 'S1 - Key Details'!E9)","v":""},{"$f":"IF(ISBLANK('S1 - Key Details'!E12), \"\", 'S1 - Key Details'!E12)","v":""},{"$f":"IF(ISBLANK('S1 - Key Details'!F13), \"\", 'S1 - Key Details'!F13)","v":""},{"$f":"IF(ISBLANK('S1 - Key Details'!H13), \"\", 'S1 - Key Details'!H13)","v":""},{"$f":" IF(ISBLANK('S1 - Key Details'!E14), \"\", 'S1 - Key Details'!E14)","v":""},"",{"$f":"IF(ISBLANK(KDSupervisorTitle), \"\", KDSupervisorTitle)","v":""},{"$f":"IF(ISBLANK(KDSupervisorName), \"\",KDSupervisorName)","v":""},{"$f":"IF(ISBLANK(KDSupervisorPost), \"\", KDSupervisorPost)","v":""},{"$f":"IF(ISBLANK(KDSupervisorEmployer), \"\", KDSupervisorEmployer)","v":""},{"$f":"IF(ISBLANK(KDSupervisorAddress), \"\", KDSupervisorAddress)","v":""},{"$f":"IF(ISBLANK(KDSupervisorTel), \"\", KDSupervisorTel)","v":""},{"$f":"IF(ISBLANK(KDSupervisorEmail), \"\", KDSupervisorEmail)","v":""},false,{"$f":"IF(ISBLANK('S1 - Key Details'!$H$45), \"\", 'S1 - Key Details'!$H$45)","v":""},false,{"$f":"IF(ISBLANK('S1 - Key Details'!H46), \"\", 'S1 - Key Details'!H46)","v":""},false,{"$f":"IF(ISBLANK('S1 - Key Details'!H47), \"\", 'S1 - Key Details'!H47)","v":""},false,{"$f":"IF(ISBLANK('S1 - Key Details'!H48), \"\", 'S1 - Key Details'!H48)","v":""},false,{"$f":"IF(ISBLANK('S1 - Key Details'!H49), \"\", 'S1 - Key Details'!H49)","v":""},false,{"$f":"IF(ISBLANK('S1 - Key Details'!H50), \"\", 'S1 - Key Details'!H50)","v":""},false,{"$f":"IF(ISBLANK('S1 - Key Details'!H53), \"\", 'S1 - Key Details'!H53)","v":""},false,false,false,false,{"$f":"IF(ISBLANK('S1 - Key Details'!H57), \"\", 'S1 - Key Details'!H57)","v":""},false,{"$f":"IF(ISBLANK('S1 - Key Details'!H58), \"\", 'S1 - Key Details'!H58)","v":""},{"$f":"IF(ISBLANK('S1 - Key Details'!E61), \"\", 'S1 - Key Details'!E61)","v":""},{"$f":"IF(ISBLANK('S1 - Key Details'!E62), \"\", 'S1 - Key Details'!E62)","v":""},{"$f":"IF(ISBLANK('S1 - Key Details'!E63), \"\", 'S1 - Key Details'!E63)","v":""},{"$f":"IF(ISBLANK('S1 - Key Details'!E64), \"\", 'S1 - Key Details'!E64)","v":""},{"$f":"IF(ISBLANK('S1 - Key Details'!E65), \"\", 'S1 - Key Details'!E65)","v":""},{"$f":"IF(ISBLANK('S1 - Key Details'!E66), \"\", 'S1 - Key Details'!E66)","v":""},{"$f":"IF(ISBLANK('S1 - Key Details'!E68), \"\", 'S1 - Key Details'!E68)","v":""},""]

{"sheet":"Researchers","index":15,"n_rows":2,"n_cols":10,"rows_kept":2,"cut":false,"hidden":true,"merged":[]}
["IdRef","ResearcherID","Title","Name","Post","Employer","Address","TelNo","Email","IsLead"]
[{"$f":"IDRef","v":22},null,{"$f":"IF(ISBLANK('S1 - Key Details'!E17), \"\", 'S1 - Key Details'!E17)","v":""},{"$f":"IF(ISBLANK('S1 - Key Details'!E18), \"\", 'S1 - Key Details'!E18)","v":""},{"$f":"IF(ISBLANK('S1 - Key Details'!E19), \"\", 'S1 - Key Details'!E19)","v":""},{"$f":"IF(ISBLANK('S1 - Key Details'!E20), \"\", 'S1 - Key Details'!E20)","v":""},{"$f":"IF(ISBLANK('S1 - Key Details'!E21), \"\", 'S1 - Key Details'!E21)","v":""},{"$f":"IF(ISBLANK('S1 - Key Details'!E23), \"\", 'S1 - Key Details'!E23)","v":""},{"$f":"IF(ISBLANK('S1 - Key Details'!E24), \"\", 'S1 - Key Details'!E24)","v":""},{"$f":"'S1 - Key Details'!G17","v":true}]

{"sheet":"Aims&ObjectivesUpload","index":16,"n_rows":2,"n_cols":8,"rows_kept":2,"cut":false,"hidden":true,"merged":[]}
["IdRef","BriefDescription","Aim","PrimaryResearchQuestions","PotentialBenefitsNOMS","PotentialBenefitsAcademic","PreviousResearch","MainLimitations"]
[{"$f":"IDRef","v":22},{"$f":"IF(ISBLANK('S2 - Aims & Objectives'!E6), \"\", 'S2 - Aims & Objectives'!E6)","v":""},{"$f":"IF(ISBLANK('S2 - Aims & Objectives'!E9), \"\", 'S2 - Aims & Objectives'!E9)","v":""},{"$f":"IF(ISBLANK('S2 - Aims & Objectives'!E12), \"\", 'S2 - Aims & Objectives'!E12)","v":""},{"$f":"IF(ISBLANK('S2 - Aims & Objectives'!E15), \"\", 'S2 - Aims & Objectives'!E15)","v":""},{"$f":"IF(ISBLANK('S2 - Aims & Objectives'!E18), \"\", 'S2 - Aims & Objectives'!E18)","v":""},{"$f":"IF(ISBLANK('S2 - Aims & Objectives'!E21), \"\", 'S2 - Aims & Objectives'!E21)","v":""},{"$f":"IF(ISBLANK('S2 - Aims & Objectives'!E24), \"\", 'S2 - Aims & Objectives'!E24)","v":""}]

{"sheet":"ResearcherTemplate","index":17,"n_rows":9,"n_cols":13,"rows_kept":9,"cut":false,"hidden":true,"merged":[[2,4,2,6],[3,4,3,6],[8,4,8,6],[5,3,6,3],[4,4,4,6],[5,4,6,6],[7,4,7,6]]}
[null,null,null,"Additional Researcher:"]
[null,null,null,"Title",null,null,false,null,null,null,{"$f":" IF(M2 = FALSE,\"* Answer Required\",\"Complete\")","v":"* Answer Required"},null,{"$f":"IF(E2=\"\",FALSE,TRUE)","v":false}]
[null,null,null,"Name",null,null,null,null,null,null,{"$f":" IF(M3 = FALSE,\"* Answer Required\",\"Complete\")","v":"* Answer Required"},null,{"$f":"IF(E3=\"\",FALSE,TRUE)","v":false}]
[null,null,null,"Post",null,null,null,null,null,null,"* Answer Required",null,false]
[null,null,null,"Employer",null,null,null,null,null,null,"* Answer Required",null,false]
[null,null,null,"Address",null,null,null,null,null,null,"* Answer Required",null,false]
[]
[null,null,null,"Tel No",null,null,null,null,null,null,"* Answer Required",null,false]
[null,null,null,"Email",null,null,null,null,null,null,"* Answer Required",null,false]

{"sheet":"EstabsListAccessUpload","index":18,"n_rows":123,"n_cols":4,"rows_kept":123,"cut":false,"hidden":true,"merged":[]}
["IdRef","Region","PrisonName","AccessRequired"]
[{"$f":"IDRef","v":22},"Contracted","Altcourse",false]
[22,"Contracted","Ashfield",false]
[22,"Contracted","Birmingham",false]
[22,"Contracted","Bronzefield",false]
[22,"Contracted","Doncaster",false]
[22,"Contracted","Dovegate",false]
[22,"Contracted","Forest Bank",false]
[22,"Contracted","Lowdham Grange",false]
[22,"Contracted","Northumberland",false]
[22,"Contracted","Oakwood",false]
[22,"Contracted","Peterborough",false]
[22,"Contracted","Rye Hill",false]
[22,"Contracted","Thameside",false]
[22,"East","Bedford",false]
[22,"East","Bure",false]
[22,"East","Highpoint",false]
[22,"East","Hollesley Bay",false]
[22,"East","Lincoln",false]
[22,"East","Littlehey",false]
[22,"East","North Sea Camp",false]
[22,"East","Norwich",false]
[22,"East","Stocken",false]
[22,"East","Warren Hill",false]
[22,"East","Wayland",false]
[22,"High Security","Belmarsh",false]
[22,"High Security","Frankland",false]
[22,"High Security","Full Sutton",false]
[22,"High Security","Long Lartin",false]
[22,"High Security","Manchester",false]
[22,"High Security","Wakefield",false]
[22,"High Security","Whitemoor",false]
[22,"High Security","Woodhill",false]
[{"$f":"IDRef","v":22},"Kent, Sussex and Essex","Blantyre House",false]
[22,"Kent, Sussex and Essex","Chelmsford",false]
[22,"Kent, Sussex and Essex","Dover",false]
[22,"Kent, Sussex and Essex","Elmley",false]
[22,"Kent, Sussex and Essex","Ford",false]
[22,"Kent, Sussex and Essex","Lewes",false]
[22,"Kent, Sussex and Essex","Maidstone",false]
[22,"Kent, Sussex and Essex","Rochester",false]
[22,"Kent, Sussex and Essex","Standford Hill",false]
[22,"Kent, Sussex and Essex","Swaleside",false]
[22,"London & Thames Valley","Aylesbury",false]
[22,"London & Thames Valley","Brixton",false]
[22,"London & Thames Valley","Bullingdon",false]
[22,"London & Thames Valley","Coldingley",false]
[22,"London & Thames Valley","Grendon / Spring Hill",false]
[22,"London & Thames Valley","High Down",false]
[22,"London & Thames Valley","Huntercombe",false]
[22,"London & Thames Valley","Isis",false]
[22,"London & Thames Valley","Mount",false]
[22,"London & Thames Valley","Onley",false]
[22,"London & Thames Valley","Pentonville",false]
[22,"London & Thames Valley","Wandsworth",false]
[22,"London & Thames Valley","Wormwood Scrubs",false]
[22,"North East & Yorkshire","Deerbolt",false]
[22,"North East & Yorkshire","Durham",false]
[{"$f":"IDRef","v":22},"North East & Yorkshire","Hatfield",false]
[22,"North East & Yorkshire","Holme House",false]
[22,"North East & Yorkshire","Hull",false]
[22,"North East & Yorkshire","Humber",false]
[22,"North East & Yorkshire","Kirklevington Grange",false]
[22,"North East & Yorkshire","Leeds",false]
[22,"North East & Yorkshire","Lindholme",false]
[22,"North East & Yorkshire","Moorland",false]
[22,"North East & Yorkshire","Wealstun",false]
[22,"North West","Buckley Hall",false]
[22,"North West","Garth",false]
[22,"North West","Haverigg",false]
[22,"North West","Hindley",false]
[22,"North West","Kennet",false]
[22,"North West","Kirkham",false]
[22,"North West","Lancaster Farms",false]
[22,"North West","Liverpool",false]
[22,"North West","Preston",false]
[22,"North West","Risley",false]
[22,"North West","Thorn Cross",false]
[22,"North West","Wymott",false]
[22,"South West & the IRCs","Bristol",false]
[22,"South West & the IRCs","Channings Wood",false]
[22,"South West & the IRCs","Dartmoor",false]
[22,"South West & the IRCs","Erlestoke",false]
[22,"South West & the IRCs","Exeter",false]
[22,"South West & the IRCs","Guys Marsh",false]
[22,"South West & the IRCs","Haslar",false]
[22,"South West & the IRCs","Isle of Wight",false]
[22,"South West & the IRCs","Leyhill",false]
[22,"South West & the IRCs","Morton Hall",false]
[22,"South West & the IRCs","Portland",false]
[{"$f":"IDRef","v":22},"South West & the IRCs","Verne",false]
[22,"South West & the IRCs","Winchester",false]
[22,"The Midlands","Brinsford",false]
[22,"The Midlands","Featherstone",false]
[22,"The Midlands","Gartree",false]
[22,"The Midlands","Glen Parva",false]
[22,"The Midlands","Hewell",false]
[22,"The Midlands","Leicester",false]
[22,"The Midlands","Nottingham",false]
[22,"The Midlands","Ranby",false]
[22,"The Midlands","Stafford",false]
[22,"The Midlands","Stoke Heath",false]
[22,"The Midlands","Sudbury",false]
[22,"The Midlands","Swinfen Hall",false]
[22,"The Midlands","Whatton",false]
[22,"Wales","Cardiff",false]
[22,"Wales","Parc",false]
[22,"Wales","Swansea",false]
[22,"Wales","Usk / Prescoed",false]
[22,"Women","Askham Grange",false]
[22,"Women","Downview",false]
[22,"Women","Drake Hall",false]
[22,"Women","East Sutton Park",false]
[22,"Women","Eastwood Park",false]
[22,"Women","Foston Hall",false]
[22,"Women","Low Newton",false]
[22,"Women","New Hall",false]
[22,"Women","Send",false]
[22,"Women","Styal",false]
[22,"Young People","Cookham Wood",false]
[22,"Young People","Feltham",false]
[22,"Young People","Werrington",false]
[{"$f":"IDRef","v":22},"Young People","Wetherby",false]

{"sheet":"NPSListAccessUpload","index":19,"n_rows":8,"n_cols":4,"rows_kept":8,"cut":false,"hidden":true,"merged":[]}
["IdRef","Group","Reporting Unit","AccessRequired"]
[{"$f":"IDRef","v":22},null,"NPS London Division",false]
[22,null,"NPS Midlands Division",false]
[22,null,"NPS North East Division",false]
[22,null,"NPS North West Division",false]
[22,null,"NPS South East and Eastern Division",false]
[22,null,"NPS South West and South Central Division",false]
[22,null,"NPS Wales Division",false]

{"sheet":"CRCListAccessUpload","index":20,"n_rows":22,"n_cols":4,"rows_kept":22,"cut":false,"hidden":true,"merged":[]}
["IdRef","Group","Reporting Unit","AccessRequired"]
[{"$f":"IDRef","v":22},null,"Bedfordshire, Cambridgeshire, Hertfordshire and Northamptonshire CRC",false]
[22,null,"Bristol, Gloucestershire, Somerset and Wiltshire CRC",false]
[22,null,"Cheshire and Greater Manchester CRC",false]
[22,null,"Cumbria and Lancashire CRC",false]
[22,null,"Derbyshire, Leicestershire Nottinghamshire and Rutland CRC",false]
[22,null,"Dorset, Devon and Cornwall CRC",false]
[22,null,"Durham Tees Valley CRC",false]
[22,null,"Essex CRC",false]
[22,null,"Hampshire and Isle of Wight CRC",false]
[22,null,"Humberside, Lincolnshire and North Yorkshire CRC",false]
[22,null,"Kent, Surrey and Sussex CRC",false]
[22,null,"London CRC",false]
[22,null,"Merseyside CRC",false]
[22,null,"Norfolk and Suffolk CRC",false]
[22,null,"Northumbria CRC",false]
[22,null,"South Yorkshire CRC",false]
[22,null,"Staffordshire and West Midlands CRC",false]
[22,null,"Thames Valley CRC",false]
[22,null,"Wales CRC",false]
[22,null,"Warwickshire and West Mercia CRC",false]
[22,null,"West Yorkshire CRC",false]

{"sheet":"DeclarationUpload","index":21,"n_rows":2,"n_cols":4,"rows_kept":2,"cut":false,"hidden":true,"merged":[]}
["IdRef","Agree","Name","Date"]
[{"$f":"IDRef","v":22},false,{"$f":"IF(ISBLANK(AgreeName), \"\", AgreeName)","v":""},{"$f":"IF(ISBLANK(AgreeDate), \"\", AgreeDate)","v":""}]

{"sheet":"Lookups","index":22,"n_rows":37,"n_cols":9,"rows_kept":37,"cut":false,"hidden":true,"merged":[]}
["Delivering the punishment and orders of the courts",null,"Directorate","Group","Directorates",null,"Yes",null,"Mr"]
["Security, safety and public protection",null,"Change & Information Communications Technology","Information Management & Change Capability","Change & Information Communications Technology",null,"No",null,"Mrs"]
["Reducing reoffending",null,"Change & Information Communications Technology","NOMS Change & ICT Delivery","Commissioning & Commercial",null,null,null,"Miss"]
["Improving efficiency and reducing costs",null,"Commissioning & Commercial","Business Support","Finance & Analysis",null,null,null,"Ms"]
[null,null,"Commissioning & Commercial","Commercial Development","High Security",null,null,null,"Dr"]
[null,null,"Commissioning & Commercial","Commissioning Strategies","Human Resources",null,null,null,"Prof"]
[null,null,"Commissioning & Commercial","Commissioning Support","National Operational Services",null,null,null,"Sir"]
[null,null,"Commissioning & Commercial","Community Commissioning","Offender Health",null,null,null,"Other "]
[null,null,"Commissioning & Commercial","Custodial Services Commissioning","Probation & Contracted Services"]
[null,null,"Commissioning & Commercial","Offender Services & Co-Commissioning","Public Sector Prisons"]
[null,null,"Finance & Analysis","Finance Business Partner for Commissioning & Commercial"]
[null,null,"Finance & Analysis","Finance Business Partner for HQ"]
[null,null,"Finance & Analysis","Finance Business Partner for Probation & Contracted Services"]
[null,null,"Finance & Analysis","Finance Business Partner for Public Sector Prisons"]
[null,null,"Finance & Analysis","Financial Management & Control"]
[null,null,"Finance & Analysis","Planning & Analysis"]
[null,null,"High Security","High Security Group"]
[null,null,"Human Resources","Employee Relations & Engagement"]
[null,null,"Human Resources","NOMS Communications"]
[null,null,"Human Resources","NOMS Corporate Learning"]
[null,null,"Human Resources","Reward & Occupational Health & Safety"]
[null,null,"National Operational Services","Offender Management & Public Protection"]
[null,null,"National Operational Services","Offender Safety, Rights & Responsibilities"]
[null,null,"National Operational Services","Operational Services & Interventions"]
[null,null,"National Operational Services","Security"]
[null,null,"National Operational Services","Women & Equalities"]
[null,null,"Offender Health","Children & Young People"]
[null,null,"Offender Health","Physical & Public Health"]
[null,null,"Offender Health","Policy, Strategy & Business"]
[null,null,"Offender Health","Substance Misuse"]
[null,null,"Probation & Contracted Services","Business & Provider Development"]
[null,null,"Probation & Contracted Services","Community"]
[null,null,"Probation & Contracted Services","Custodial Contracts"]
[null,null,"Public Sector Prisons","Business Development"]
[null,null,"Public Sector Prisons","Other"]
[null,null,"Public Sector Prisons","Psychological Services"]
[null,null,"Public Sector Prisons","Youth Justice"]